bitfinex/quotes_BTCUSD_20250226
["timestamp","ask_amount","ask_price","bid_price","bid_amount"]
[1740533853998,0.32618896,88611.0,88610.0,0.00648845]
[1740533854384,0.32618896,88611.0,88610.0,0.01133515]
[1740533854753,0.32618896,88611.0,88610.0,0.08808845]
[1740533854959,0.32618896,88611.0,88610.0,0.09293515]
[1740533855697,0.32618896,88611.0,88610.0,0.09193515]
[1740533855896,0.49646796,88611.0,88610.0,0.08993515]
[1740533856121,0.49646796,88611.0,88610.0,0.08508845]
[1740533856334,0.49646796,88611.0,88610.0,0.00648845]
[1740533856714,0.49746796,88611.0,88610.0,0.00648845]
[1740533857359,0.49646796,88611.0,88610.0,0.00348845]
[1740533857709,0.32718896,88611.0,88610.0,0.00648845]
[1740533858125,0.32618896,88611.0,88610.0,0.00648845]
[1740533858568,0.32618896,88611.0,88610.0,0.00348845]
[1740533858768,0.49546796,88611.0,88610.0,0.00348845]
[1740533858992,0.49546796,88611.0,88610.0,0.00648845]
[1740533859113,0.32618896,88611.0,88610.0,0.00448845]
[1740533859313,0.32618896,88611.0,88610.0,0.00533705]
[1740533859609,0.32618896,88611.0,88610.0,0.00433705]
[1740533859813,0.32618896,88611.0,88610.0,0.00533705]
[1740533860611,0.32718896,88611.0,88610.0,0.00933705]
[1740533861133,0.32718896,88611.0,88610.0,0.00833705]
[1740533861370,0.32618896,88611.0,88610.0,0.00433705]
[1740533861587,0.32718896,88611.0,88610.0,0.00433705]
[1740533861794,0.32718896,88611.0,88610.0,0.00833705]
[1740533861994,0.32618896,88611.0,88610.0,0.00433705]
[1740533862199,0.49546796,88611.0,88610.0,0.00433705]
[1740533862402,0.49746796,88611.0,88610.0,0.00833705]
[1740533862741,0.49646796,88611.0,88610.0,0.00833705]
[1740533863120,0.49746796,88611.0,88610.0,0.00833705]
[1740533863454,0.49646796,88611.0,88610.0,0.00433705]
[1740533863996,0.49746796,88611.0,88610.0,0.00833705]
[1740533864202,0.49746796,88611.0,88610.0,0.00433705]
[1740533864642,0.49746796,88611.0,88610.0,0.00833705]
[1740533864832,0.49646796,88611.0,88610.0,0.00433705]
[1740533865006,0.49546796,88611.0,88610.0,0.00433705]
[1740533865227,0.49546796,88611.0,88610.0,0.00733705]
[1740533865428,0.49546796,88611.0,88610.0,0.00433705]
[1740533867164,0.49546796,88611.0,88610.0,0.00533705]
[1740533867308,0.49546796,88611.0,88610.0,0.00433705]
[1740533867512,0.49546796,88611.0,88610.0,0.00633705]
[1740533868376,0.49546796,88611.0,88610.0,0.00433705]
[1740533868810,0.49546796,88611.0,88610.0,0.00533705]
[1740533869953,0.49546796,88611.0,88610.0,0.00433705]
[1740533870407,0.49546796,88611.0,88610.0,0.00633705]
[1740533870611,0.32618896,88611.0,88610.0,0.00633705]
[1740533870828,0.32618896,88611.0,88610.0,0.00433705]
[1740533871029,0.32618896,88611.0,88610.0,0.00633705]
[1740533871234,0.49546796,88611.0,88610.0,0.00633705]
[1740533871362,0.49546796,88611.0,88610.0,0.00433705]
[1740533871712,0.49546796,88611.0,88610.0,0.00633705]
[1740533874089,0.32618896,88611.0,88610.0,0.00633705]
[1740533879229,0.32618896,88611.0,88610.0,0.13383705]
[1740533879658,0.32618896,88611.0,88610.0,0.13869683]
[1740533879873,0.32618896,88611.0,88610.0,0.14137423]
[1740533880095,0.32618896,88611.0,88610.0,0.13937423]
[1740533880388,0.32618896,88611.0,88610.0,0.13383705]
[1740533880589,0.32618896,88611.0,88610.0,0.13183705]
[1740533880889,0.32818896,88611.0,88610.0,0.14169683]
[1740533881112,0.32718896,88611.0,88610.0,0.13937423]
[1740533881499,0.32918896,88611.0,88610.0,0.14437423]
[1740533881874,0.32818896,88611.0,88610.0,0.14337423]
[1740533882395,0.32918896,88611.0,88610.0,0.14437423]
[1740533882765,0.49646796,88611.0,88610.0,0.01287423]
[1740533882949,0.49646796,88611.0,88610.0,0.01033705]
[1740533883373,0.49646796,88611.0,88610.0,0.00533705]
[1740533883630,0.49546796,88611.0,88610.0,0.00933705]
[1740533883912,0.49546796,88611.0,88610.0,0.00733705]
[1740533884310,0.49546796,88611.0,88610.0,0.00833705]
[1740533884544,0.49546796,88611.0,88610.0,0.00533705]
[1740533884764,0.49546796,88611.0,88610.0,0.00633705]
[1740533886096,0.49546796,88611.0,88610.0,0.00533705]
[1740533886209,0.49546796,88611.0,88610.0,0.00633705]
[1740533886626,0.49546796,88611.0,88610.0,0.00433705]
[1740533886825,0.49546796,88611.0,88610.0,0.00533705]
[1740533887037,0.49546796,88611.0,88610.0,0.00633705]
[1740533887245,0.62386577,88611.0,88610.0,0.00533705]
[1740533887425,0.62386577,88611.0,88610.0,0.00433705]
[1740533887720,0.62386577,88611.0,88610.0,0.00633705]
[1740533887946,0.62386577,88611.0,88610.0,0.00533705]
[1740533888163,0.51000881,88611.0,88610.0,0.00433705]
[1740533888336,0.46929,88605.0,88604.0,0.0008468]
[1740533888505,0.47909,88605.0,88604.0,0.00099157]
[1740533890065,0.48509,88605.0,88604.0,0.00099157]
[1740533890261,0.59894696,88605.0,88604.0,0.00099157]
[1740533890463,0.469323,88588.0,88587.0,0.0008476]
[1740533890671,0.469323,88588.0,88587.0,0.00099234]
[1740533893079,0.469323,88588.0,88587.0,0.00199234]
[1740533894721,0.36555906,88588.0,88587.0,0.00199234]
[1740533894875,0.225761,88590.0,88587.0,0.00199234]
[1740533895292,0.169323,88588.0,88587.0,0.00199234]
[1740533895710,0.169323,88588.0,88587.0,0.00099234]
[1740533899130,0.169323,88588.0,88587.0,0.00199234]
[1740533899544,0.169323,88588.0,88587.0,0.00099234]
[1740533899898,0.169323,88588.0,88587.0,0.00199234]
[1740533901583,0.48386685,88586.0,88571.0,0.0008474]
[1740533901759,0.3,88571.0,88556.0,0.0840486]
[1740533901944,0.01454085,88586.0,88556.0,0.0008486]
[1740533901945,0.469382,88557.0,88556.0,0.0008486]
[1740533902157,0.469382,88557.0,88556.0,0.00099303]
[1740533902555,0.49289127,88557.0,88556.0,0.00099303]
[1740533903441,0.50743212,88557.0,88556.0,0.00099303]
[1740533903983,0.62128908,88557.0,88556.0,0.00099303]
[1740533905990,0.50743212,88557.0,88556.0,0.00099303]
[1740533908417,0.49289127,88557.0,88556.0,0.00099303]
[1740533916379,0.49289127,88557.0,88556.0,0.08099303]
[1740533918969,0.49289127,88557.0,88556.0,0.00099303]
[1740533920959,0.02350927,88557.0,88556.0,0.00099303]
[1740533921215,0.169382,88557.0,88556.0,0.00099303]
[1740533921534,0.19287734,88557.0,88556.0,0.00099303]
[1740533921895,0.28823145,88557.0,88556.0,0.00099303]
[1740533922090,0.3027723,88557.0,88556.0,0.00099303]
[1740533922831,0.20741819,88557.0,88556.0,0.00099303]
[1740533924755,0.469401,88547.0,88531.0,0.0762]
[1740533924880,0.469401,88547.0,88546.0,0.00099294]
[1740533926093,0.3,88530.0,88526.0,0.0005648]
[1740533926305,0.469449,88522.0,88520.0,0.0467]
[1740533926483,0.469449,88522.0,88521.0,0.00098151]
[1740533935684,0.3,88522.0,88521.0,0.00098151]
[1740533935883,0.469449,88522.0,88521.0,0.00098151]
[1740533940243,0.3,88522.0,88521.0,0.00098151]
[1740533940451,0.3,88522.0,88521.0,0.07648151]
[1740533940653,0.469449,88522.0,88521.0,0.07648151]
[1740533941068,0.469449,88522.0,88521.0,0.00098151]
[1740533942350,0.48498985,88522.0,88521.0,0.00098151]
[1740533942478,0.59984681,88522.0,88521.0,0.00098151]
[1740533942678,0.59884681,88522.0,88521.0,0.00098151]
[1740533942879,0.48498985,88522.0,88521.0,0.00098151]
[1740533943199,0.48598985,88522.0,88521.0,0.00098151]
[1740533944224,0.48398985,88522.0,88521.0,0.00098151]
[1740533944441,0.48598985,88522.0,88521.0,0.00098151]
[1740533944653,0.48798985,88522.0,88521.0,0.00098151]
[1740533944826,0.58351263,88522.0,88521.0,0.00098151]
[1740533945025,0.58151263,88522.0,88521.0,0.00098151]
[1740533945230,0.473449,88522.0,88521.0,0.00098151]
[1740533945434,0.471449,88522.0,88521.0,0.00098151]
[1740533946190,0.474449,88522.0,88521.0,0.00098151]
[1740533947434,0.479449,88522.0,88521.0,0.00098151]
[1740533947662,0.474449,88522.0,88521.0,0.00098151]
[1740533947971,0.472449,88522.0,88521.0,0.00098151]
[1740533948190,0.475449,88522.0,88521.0,0.00098151]
[1740533948421,0.469449,88522.0,88521.0,0.00098151]
[1740533948616,0.476449,88522.0,88521.0,0.00098151]
[1740533949121,0.458156,88522.0,88521.0,0.00098151]
[1740533949285,0.460156,88522.0,88521.0,0.00098151]
[1740533949485,0.462156,88522.0,88521.0,0.00098151]
[1740533950716,0.460156,88522.0,88521.0,0.00098151]
[1740533951128,0.294707,88522.0,88521.0,0.04948151]
[1740533951537,0.463156,88522.0,88521.0,0.04948151]
[1740533951712,0.464156,88522.0,88521.0,0.04948151]
[1740533952083,0.459156,88522.0,88521.0,0.04948151]
[1740533952676,0.458156,88522.0,88521.0,0.04948151]
[1740533956494,0.458156,88522.0,88521.0,0.00098151]
[1740533958198,0.459156,88522.0,88521.0,0.00098151]
[1740533958399,0.460156,88522.0,88521.0,0.00098151]
[1740533958606,0.458156,88522.0,88521.0,0.00098151]
[1740533959005,0.459156,88522.0,88521.0,0.00098151]
[1740533959658,0.460156,88522.0,88521.0,0.00098151]
[1740533959854,0.459156,88522.0,88521.0,0.00098151]
[1740533960469,0.289707,88522.0,88521.0,0.00098151]
[1740533960645,0.289707,88522.0,88521.0,0.13228151]
[1740533960823,0.458156,88522.0,88521.0,0.13228151]
[1740533961043,0.460156,88522.0,88521.0,0.13228151]
[1740533961591,0.458156,88522.0,88521.0,0.13228151]
[1740533963294,0.458156,88522.0,88521.0,0.00098151]
[1740533964285,0.4585808,88522.0,88521.0,0.00098151]
[1740533965169,0.4605808,88522.0,88521.0,0.00098151]
[1740533966027,0.4625808,88522.0,88521.0,0.00098151]
[1740533967298,0.4585808,88522.0,88521.0,0.00098151]
[1740533967476,0.4595808,88522.0,88521.0,0.00098151]
[1740533968256,0.4585808,88522.0,88521.0,0.00552811]
[1740533968460,0.4595808,88522.0,88521.0,0.00552811]
[1740533968683,0.4605808,88522.0,88521.0,0.00552811]
[1740533968882,0.4595808,88522.0,88521.0,0.00552811]
[1740533969120,0.4585808,88522.0,88521.0,0.00552811]
[1740533969264,0.4605808,88522.0,88521.0,0.00552811]
[1740533969667,0.15503554,88522.0,88521.0,0.00552811]
[1740533970655,0.15703554,88522.0,88521.0,0.00552811]
[1740533970863,0.15503554,88522.0,88521.0,0.00552811]
[1740533971104,0.15703554,88522.0,88521.0,0.00552811]
[1740533971312,0.15503554,88522.0,88521.0,0.00552811]
[1740533971517,0.15803554,88522.0,88521.0,0.00552811]
[1740533971743,0.46003554,88522.0,88521.0,0.00552811]
[1740533972178,0.45303554,88522.0,88521.0,0.00552811]
[1740533972385,0.45503554,88522.0,88521.0,0.00552811]
[1740533972683,0.45503554,88522.0,88521.0,0.13402811]
[1740533972885,0.45403554,88522.0,88521.0,0.13402811]
[1740533973288,0.45503554,88522.0,88521.0,0.13402811]
[1740533973642,0.45403554,88522.0,88521.0,0.13402811]
[1740533974417,0.45303554,88522.0,88521.0,0.13402811]
[1740533977775,0.15303554,88522.0,88521.0,0.13402811]
[1740533981844,0.45303554,88522.0,88521.0,0.13402811]
[1740533985493,0.0004248,88522.0,88521.0,0.13402811]
[1740533986851,0.0004248,88522.0,88521.0,0.30506045]
[1740533987059,0.0004248,88522.0,88521.0,0.30347911]
[1740533987581,0.0004248,88522.0,88521.0,0.62857911]
[1740533987760,0.0004247,88525.0,88524.0,0.169445]
[1740533987963,0.0004247,88525.0,88524.0,0.29882617]
[1740533988166,0.0004247,88525.0,88524.0,0.296245]
[1740533988365,0.0004247,88525.0,88524.0,0.3007916]
[1740533988779,0.0004247,88525.0,88524.0,0.2987916]
[1740533990518,0.0024247,88525.0,88524.0,0.6298916]
[1740533992568,0.0024247,88525.0,88524.0,0.4644466]
[1740533993631,0.0014247,88525.0,88524.0,0.4614466]
[1740533993999,0.0024247,88525.0,88524.0,0.4654466]
[1740533994433,0.0004247,88525.0,88524.0,0.4584466]
[1740533994642,0.0014247,88525.0,88524.0,0.4614466]
[1740533994849,0.0024247,88525.0,88524.0,0.4624466]
[1740533995247,0.0024247,88525.0,88524.0,0.4614466]
[1740533995450,0.0004247,88525.0,88524.0,0.4624466]
[1740533995648,0.0014247,88525.0,88524.0,0.4624466]
[1740533996458,0.0014247,88525.0,88524.0,0.3067916]
[1740533996978,0.0014247,88525.0,88524.0,0.1363466]
[1740533997177,0.0014247,88525.0,88524.0,0.1333466]
[1740533997426,0.0024247,88525.0,88524.0,0.1373466]
[1740533997653,0.0034247,88525.0,88524.0,0.1403466]
[1740533997816,0.0024247,88525.0,88524.0,0.30737286]
[1740533998023,0.0034247,88525.0,88524.0,0.3097916]
[1740533998223,0.0014247,88525.0,88524.0,0.3067916]
[1740533998737,0.0024247,88525.0,88524.0,0.3097916]
[1740533998962,0.0014247,88525.0,88524.0,0.3057916]
[1740534000266,0.0014247,88525.0,88524.0,0.3067916]
[1740534000647,0.0004247,88525.0,88524.0,0.3027916]
[1740534001027,0.0014247,88525.0,88524.0,0.3067916]
[1740534001464,0.0014247,88525.0,88524.0,0.6308916]
[1740534001717,0.0004247,88547.0,88545.0,0.293605]
[1740534001872,0.0004247,88547.0,88546.0,0.169403]
[1740534002073,0.0004247,88547.0,88545.0,0.1242]
[1740534002274,0.0004247,88547.0,88546.0,0.169403]
[1740534002497,0.0004247,88547.0,88546.0,0.17098398]
[1740534002702,0.0004247,88547.0,88546.0,0.00158098]
[1740534003436,0.0004247,88547.0,88545.0,0.0487]
[1740534003618,0.0014247,88547.0,88546.0,0.003]
[1740534003826,0.0004247,88547.0,88545.0,0.0487]
[1740534003979,0.0004247,88547.0,88545.0,0.0477]
[1740534004185,0.0014247,88547.0,88546.0,0.003]
[1740534004379,0.0014247,88547.0,88545.0,0.0477]
[1740534004947,0.01771511,88571.0,88546.0,0.00858091]
[1740534005234,0.01771511,88571.0,88553.0,0.0781]
[1740534005429,0.169369,88564.0,88553.0,0.0781]
[1740534005621,0.01771511,88571.0,88553.0,0.0781]
[1740534005829,0.169374,88562.0,88553.0,0.0781]
[1740534006389,0.169374,88561.0,88553.0,0.0781]
[1740534006589,0.00042575,88562.0,88553.0,0.0781]
[1740534006590,0.00042575,88562.0,88553.0,0.0761]
[1740534006785,0.169374,88561.0,88553.0,0.0761]
[1740534007200,0.169374,88561.0,88553.0,0.0791]
[1740534007399,0.00042575,88562.0,88553.0,0.0821]
[1740534007816,0.22625675,88562.0,88553.0,0.0791]
[1740534008031,0.169374,88561.0,88553.0,0.0761]
[1740534008231,0.00042575,88562.0,88553.0,0.0831]
[1740534008450,0.169374,88561.0,88553.0,0.0831]
[1740534008700,0.00042575,88562.0,88561.0,0.169374]
[1740534009243,0.00042575,88562.0,88561.0,0.17095463]
[1740534009462,0.00042575,88562.0,88561.0,0.21915456]
[1740534009775,0.00042575,88562.0,88561.0,0.30235456]
[1740534010010,0.00042575,88562.0,88561.0,0.300774]
[1740534010308,0.3,88594.0,88560.0,0.3251]
[1740534010309,0.169312,88594.0,88566.0,0.0832]
[1740534010457,0.169312,88594.0,88576.0,0.169344]
[1740534010677,0.405174,88600.0,88565.0,0.225822]
[1740534010678,0.169306,88597.0,88580.0,0.044]
[1740534010888,0.169309,88595.0,88580.0,0.043]
[1740534011063,0.18819374,88597.0,88580.0,0.043]
[1740534011268,0.01888674,88597.0,88580.0,0.043]
[1740534011447,0.0004248,88611.0,88580.0,0.043]
[1740534011448,0.0004248,88611.0,88582.0,0.0767]
[1740534012052,0.169316,88592.0,88582.0,0.0767]
[1740534012256,0.169317,88591.0,88582.0,0.0767]
[1740534012462,0.225751,88593.0,88582.0,0.0767]
[1740534012666,0.169317,88592.0,88582.0,0.0767]
[1740534013135,0.225725,88604.0,88582.0,0.0767]
[1740534013136,0.169317,88591.0,88582.0,0.0767]
[1740534013340,0.3,88608.0,88582.0,0.0767]
[1740534013542,0.3,88609.0,88582.0,0.07828018]
[1740534013751,0.02230181,88611.0,88590.0,0.0757]
[1740534013960,0.02230181,88611.0,88594.0,0.0757]
[1740534014163,0.02230181,88611.0,88598.0,0.169302]
[1740534014386,0.02230181,88611.0,88594.0,0.0757]
[1740534014387,0.01930181,88611.0,88601.0,0.0757]
[1740534014642,0.003,88608.0,88604.0,0.16929]
[1740534014817,0.003,88608.0,88605.0,0.00157988]
[1740534015020,0.003,88609.0,88605.0,0.00157988]
[1740534015226,0.003,88609.0,88606.0,0.169287]
[1740534015400,0.0004248,88611.0,88607.0,0.00157987]
[1740534015600,0.0004248,88611.0,88610.0,0.169281]
[1740534015802,0.0004248,88611.0,88610.0,0.1708607]
[1740534016765,0.0014248,88611.0,88610.0,0.1708607]
[1740534017000,0.0014248,88611.0,88610.0,0.0015797]
[1740534017214,0.0004248,88611.0,88607.0,0.0757]
[1740534017362,0.0014248,88611.0,88610.0,0.007]
[1740534018312,0.1707038,88611.0,88610.0,0.007]
[1740534018486,0.0014248,88611.0,88610.0,0.007]
[1740534018910,0.0014248,88611.0,88610.0,0.014]
[1740534019724,0.0004248,88611.0,88610.0,0.007]
[1740534020159,0.0004248,88611.0,88610.0,0.014]
[1740534020348,0.0004248,88611.0,88598.0,0.081]
[1740534020664,0.0004248,88611.0,88610.0,0.013]
[1740534021041,0.0004248,88611.0,88601.0,0.00171299]
[1740534021268,0.0004248,88611.0,88610.0,0.007]
[1740534021435,0.0004248,88611.0,88610.0,0.014]
[1740534021638,0.0004248,88611.0,88610.0,0.007]
[1740534021851,0.0004248,88611.0,88601.0,0.00171299]
[1740534022056,0.0004248,88611.0,88601.0,0.00013311]
[1740534022251,0.0004248,88611.0,88601.0,0.00871299]
[1740534023034,0.0014248,88611.0,88610.0,0.007]
[1740534023211,0.0004248,88611.0,88601.0,0.00871299]
[1740534023351,0.0004248,88611.0,88601.0,0.00171299]
[1740534023551,0.01568965,88621.0,88601.0,0.00871299]
[1740534023754,0.169276,88613.0,88601.0,0.01413311]
[1740534024263,0.169276,88613.0,88601.0,0.00713311]
[1740534024800,0.3,88628.0,88601.0,0.00713311]
[1740534024801,0.001,88611.0,88601.0,0.01413311]
[1740534025095,0.001,88611.0,88601.0,0.008713]
[1740534025295,0.170279,88611.0,88601.0,0.014713]
[1740534025498,0.170279,88611.0,88601.0,0.01313311]
[1740534026038,0.169275,88613.0,88601.0,0.00613311]
[1740534026225,0.169272,88615.0,88601.0,0.013713]
[1740534026431,0.169272,88615.0,88601.0,0.007713]
[1740534026641,0.0004238,88613.0,88601.0,0.007713]
[1740534026881,0.0004238,88613.0,88601.0,0.020713]
[1740534027041,0.0004238,88613.0,88601.0,0.014713]
[1740534027242,0.0004238,88613.0,88601.0,0.008713]
[1740534027520,0.0004238,88613.0,88601.0,0.013713]
[1740534027734,0.0004238,88613.0,88601.0,0.006713]
[1740534028013,0.0004238,88613.0,88601.0,0.008713]
[1740534028396,0.0004238,88613.0,88601.0,0.014713]
[1740534028726,0.0004238,88613.0,88601.0,0.01313311]
[1740534028878,0.0004238,88613.0,88602.0,0.00157989]
[1740534029847,0.1696988,88613.0,88602.0,0.00157989]
[1740534030056,0.1696988,88613.0,88601.0,0.006713]
[1740534030387,0.169281,88610.0,88602.0,0.006]
[1740534030587,0.0004238,88613.0,88601.0,0.00613311]
[1740534030769,0.0004238,88613.0,88602.0,0.00157989]
[1740534031001,0.0004238,88613.0,88602.0,0.00557989]
[1740534031132,0.0004238,88613.0,88603.0,0.1244]
[1740534031317,0.0004238,88613.0,88604.0,0.00157968]
[1740534031523,0.0004238,88613.0,88607.0,0.169286]
[1740534031717,0.0004238,88613.0,88608.0,0.00157968]
[1740534032203,0.0004238,88613.0,88609.0,0.3251]
[1740534032401,0.0004238,88613.0,88610.0,0.00157968]
[1740534032959,0.0004238,88613.0,88609.0,0.3251]
[1740534033172,0.0004238,88613.0,88610.0,0.00157972]
[1740534033369,0.169257,88623.0,88609.0,0.3251]
[1740534033620,0.169258,88622.0,88609.0,0.3251]
[1740534033797,0.169258,88622.0,88610.0,0.014]
[1740534033990,0.01911936,88622.0,88610.0,0.014]
[1740534034171,0.169265,88619.0,88610.0,0.007]
[1740534034375,0.225647,88634.0,88611.0,0.0095105]
[1740534034618,0.16927,88616.0,88611.0,0.0095105]
[1740534034796,0.225677,88623.0,88611.0,0.0095105]
[1740534035623,0.169266,88618.0,88611.0,0.0095105]
[1740534036227,0.169266,88618.0,88611.0,0.0145105]
[1740534036424,0.169266,88618.0,88611.0,0.0095105]
[1740534036862,0.169266,88618.0,88611.0,0.0145105]
[1740534037652,0.01881087,88622.0,88611.0,0.0145105]
[1740534037849,0.169277,88612.0,88611.0,0.0145105]
[1740534038056,0.169277,88612.0,88611.0,0.005]
[1740534038254,0.169277,88612.0,88611.0,0.009]
[1740534038456,0.0004236,88621.0,88611.0,0.004]
[1740534038720,0.169267,88618.0,88611.0,0.004]
[1740534038925,0.169267,88618.0,88611.0,0.007]
[1740534039139,0.169267,88618.0,88611.0,0.004]
[1740534039471,0.169266,88618.0,88611.0,0.007]
[1740534039680,0.225691,88617.0,88611.0,0.007]
[1740534039879,0.169277,88612.0,88611.0,0.007]
[1740534040091,0.169277,88612.0,88611.0,0.012]
[1740534040294,0.169277,88612.0,88611.0,0.005]
[1740534040506,0.169277,88612.0,88611.0,0.009]
[1740534041101,0.169277,88612.0,88611.0,0.005]
[1740534041416,0.169277,88612.0,88611.0,0.012]
[1740534041622,0.169277,88612.0,88611.0,0.017]
[1740534042001,0.169277,88612.0,88611.0,0.007]
[1740534042225,0.169277,88612.0,88611.0,0.014]
[1740534042803,0.169277,88612.0,88611.0,0.007]
[1740534043007,0.169283,88609.0,88608.0,0.0008472]
[1740534043346,0.169283,88609.0,88608.0,0.00869621]
[1740534043647,0.169283,88609.0,88608.0,0.0008472]
[1740534043804,0.169283,88609.0,88608.0,0.00869621]
[1740534044004,0.169283,88609.0,88608.0,0.0008472]
[1740534044203,0.169283,88609.0,88608.0,0.00869621]
[1740534044500,0.169283,88609.0,88608.0,0.0008472]
[1740534045429,0.169283,88609.0,88608.0,0.0048472]
[1740534045980,0.169283,88609.0,88608.0,0.0078472]
[1740534046933,0.469283,88609.0,88608.0,0.0078472]
[1740534049383,0.469283,88609.0,88608.0,0.0048472]
[1740534049614,0.470283,88609.0,88608.0,0.0048472]
[1740534049907,0.170283,88609.0,88608.0,0.0048472]
[1740534050105,0.169283,88609.0,88608.0,0.0048472]
[1740534050308,0.169283,88609.0,88608.0,0.0008472]
[1740534050539,0.170283,88609.0,88608.0,0.0008472]
[1740534050902,0.171283,88609.0,88608.0,0.0008472]
[1740534052097,0.170283,88609.0,88608.0,0.0008472]
[1740534052299,0.171283,88609.0,88608.0,0.0008472]
[1740534052777,0.170283,88609.0,88608.0,0.0008472]
[1740534052937,0.171283,88609.0,88608.0,0.0008472]
[1740534053164,0.170283,88609.0,88608.0,0.0008472]
[1740534053537,0.171283,88609.0,88608.0,0.0008472]
[1740534053723,0.170283,88609.0,88608.0,0.0008472]
[1740534054062,0.172283,88609.0,88608.0,0.0008472]
[1740534055381,0.170283,88609.0,88608.0,0.0008472]
[1740534055600,0.171283,88609.0,88608.0,0.0008472]
[1740534057238,0.22189049,88610.0,88608.0,0.0008472]
[1740534057455,0.169283,88609.0,88608.0,0.0008472]
[1740534059163,0.469283,88609.0,88608.0,0.0008472]
[1740534063657,0.16933,88584.0,88583.0,0.0797]
[1740534063886,0.16933,88584.0,88583.0,0.08524946]
[1740534064092,0.18703744,88584.0,88583.0,0.08524946]
[1740534064543,0.18703744,88584.0,88583.0,0.0797]
[1740534064878,0.18703744,88584.0,88583.0,0.08524946]
[1740534065099,0.01770744,88584.0,88583.0,0.08524946]
[1740534065247,0.0363995,88584.0,88583.0,0.08524946]
[1740534065453,0.01770744,88584.0,88583.0,0.09224946]
[1740534066435,0.01770744,88584.0,88583.0,0.09924946]
[1740534067181,0.20587815,88584.0,88583.0,0.09924946]
[1740534067729,0.20587815,88584.0,88583.0,0.0937]
[1740534068132,0.20587815,88584.0,88583.0,0.014]
[1740534068133,0.50587815,88584.0,88583.0,0.014]
[1740534068332,0.520419,88584.0,88583.0,0.014]
[1740534069035,0.169384,88556.0,88555.0,0.0783]
[1740534069219,0.169384,88556.0,88555.0,0.08099492]
[1740534069430,0.169384,88556.0,88555.0,0.08661247]
[1740534069881,0.225835,88560.0,88555.0,0.08661247]
[1740534070190,0.3,88564.0,88555.0,0.0783]
[1740534070425,0.3,88562.0,88555.0,0.0783]
[1740534070803,0.3,88562.0,88556.0,0.00831756]
[1740534071390,0.3,88566.0,88556.0,0.00831756]
[1740534071705,0.0098,88579.0,88555.0,0.0913]
[1740534071905,0.3,88558.0,88555.0,0.0853]
[1740534072137,0.225837,88560.0,88556.0,0.01231756]
[1740534072349,0.16938,88558.0,88556.0,0.004]
[1740534072555,0.469382,88557.0,88556.0,0.004]
[1740534072754,0.469384,88556.0,88555.0,0.0783]
[1740534072932,0.16939,88553.0,88552.0,0.0474]
[1740534073549,0.3,88556.0,88552.0,0.0474]
[1740534073750,0.170384,88557.0,88552.0,0.0474]
[1740534073932,0.170384,88557.0,88555.0,0.0008474]
[1740534074482,0.001,88557.0,88555.0,0.0008474]
[1740534074807,0.001,88557.0,88556.0,0.006]
[1740534075086,0.002,88557.0,88556.0,0.006]
[1740534075242,0.001,88557.0,88555.0,0.0008474]
[1740534075656,0.002,88557.0,88555.0,0.0068474]
[1740534075903,0.002,88557.0,88555.0,0.0058474]
[1740534076085,0.002,88557.0,88556.0,0.0793]
[1740534076260,0.001,88557.0,88556.0,0.0793]
[1740534076458,0.002,88557.0,88556.0,0.08088081]
[1740534076666,0.002,88557.0,88556.0,0.29816466]
[1740534076992,0.002,88557.0,88556.0,0.296584]
[1740534077233,0.001,88557.0,88556.0,0.296584]
[1740534077648,0.3,88585.0,88568.0,0.24866]
[1740534077813,0.3,88585.0,88569.0,0.00158057]
[1740534078236,0.46933,88585.0,88569.0,0.00158057]
[1740534078442,0.3,88586.0,88569.0,0.17093757]
[1740534078641,0.16933,88585.0,88569.0,0.00158057]
[1740534078851,0.469327,88586.0,88569.0,0.00158057]
[1740534079434,0.3,88587.0,88569.0,0.00158057]
[1740534079648,0.3,88587.0,88571.0,0.225807]
[1740534079805,0.3,88587.0,88574.0,0.169348]
[1740534080021,0.169319,88591.0,88573.0,0.169351]
[1740534080218,0.169315,88592.0,88575.0,0.00559108]
[1740534080440,0.169322,88589.0,88574.0,0.00559325]
[1740534080776,0.169327,88586.0,88575.0,0.00559108]
[1740534080970,0.3,88585.0,88575.0,0.00573511]
[1740534081178,0.469346,88576.0,88575.0,0.00014403]
[1740534083001,0.48388685,88576.0,88575.0,0.00014403]
[1740534083507,0.469346,88576.0,88575.0,0.00014403]
[1740534083803,0.470346,88576.0,88575.0,0.00014403]
[1740534086198,0.001,88576.0,88575.0,0.00014403]
[1740534086465,0.001,88576.0,88575.0,0.07714403]
[1740534086586,0.001,88576.0,88575.0,0.12594403]
[1740534086777,0.0014239,88576.0,88575.0,0.13007237]
[1740534086991,0.0014239,88576.0,88575.0,0.29942037]
[1740534087408,0.0014239,88576.0,88575.0,0.30242037]
[1740534087629,0.0004239,88576.0,88575.0,0.62752037]
[1740534087826,0.0004239,88576.0,88575.0,0.62852037]
[1740534088208,0.0004239,88576.0,88575.0,0.63552037]
[1740534089070,0.0004239,88576.0,88575.0,0.63152037]
[1740534089424,0.0004239,88576.0,88575.0,0.63852037]
[1740534092486,0.01770744,88584.0,88583.0,0.169332]
[1740534092690,0.00785963,88584.0,88583.0,0.617632]
[1740534092899,0.02425917,88610.0,88607.0,0.0776]
[1740534093105,0.0004237,88610.0,88608.0,0.0465]
[1740534093310,0.0004237,88610.0,88609.0,0.169283]
[1740534093809,0.0004237,88610.0,88609.0,0.17332657]
[1740534094009,0.0004237,88610.0,88609.0,0.00404357]
[1740534094149,0.0004237,88610.0,88609.0,0.1734706]
[1740534094593,0.0004237,88610.0,88609.0,0.17505034]
[1740534094972,0.0004237,88610.0,88609.0,0.18105034]
[1740534095899,0.0004237,88610.0,88609.0,0.18705034]
[1740534098148,0.0004237,88610.0,88609.0,0.1854706]
[1740534099310,0.0004237,88610.0,88609.0,0.18814831]
[1740534099654,0.0004237,88610.0,88609.0,0.18972795]
[1740534100487,0.0004237,88610.0,88609.0,0.51482795]
[1740534100720,0.0004237,88610.0,88609.0,0.51324831]
[1740534101948,0.0004237,88610.0,88609.0,0.34396531]
[1740534102092,0.0004237,88610.0,88609.0,0.34284482]
[1740534102555,0.0004237,88610.0,88609.0,0.34554494]
[1740534103168,0.0004237,88610.0,88609.0,0.33954494]
[1740534103578,0.0004237,88610.0,88609.0,0.34554494]
[1740534103774,0.0004237,88610.0,88609.0,0.50882794]
[1740534104002,0.0004237,88610.0,88609.0,0.33354494]